Cogmind - Beta 15 @@@ ROGUE MODE // 2025.06.24 @ 22:03:11 Player: erfael Result: Destroyed by Y-64 Sentinel with KE Penetrator Performance ------------- Evolutions (5) 2500 Regions Visited (5) 1000 Robots Destroyed (16) 80 Value Destroyed (753) 753 Prototype IDs (6) 120 Alien Tech Used (0) 0 Bonus (800) 800 TOTAL SCORE: 5253 Bonus ------- Registered with UFD 300 Met Optimus in HQ 500 Cogmind --------- Core Integrity 0/1000 Matter 300/300 Energy 99/100 System Corruption 6% Temperature Cool (2) Movement Hovering (70) Location -5/Factory Parts ------- > --- POWER (2) -------- (None) > --- PROPULSION (7) --- Gyrokinetic Inverter > --- UTILITY (5) ------ Advanced Signal Interpreter > --- WEAPON (3) ------- (None) > --- INVENTORY (5) ---- Hardlight Generator Peak State ------------ > --- POWER ------------ Improved Deuterium Engine > --- PROPULSION ------- Light Treads Carbon-fiber Leg Overtuned Titanium Leg Overtuned Titanium Leg Improved VSS Leg > --- UTILITY ---------- Improved Cooling System Small Storage Unit Advanced Signal Interpreter Seismic Detector Focal Shield > --- WEAPON ----------- Improved Arc Projector Medium Laser Light Assault Rifle > --- INVENTORY -------- Aluminum Leg Improved Terrain Scanner Seismic Detector High-powered Shock Rifle [Rating: 44] Favorites ----------- Power Light Ion Engine Engine Light Ion Engine Power Core Micro Nuclear Core Propulsion Aluminum Leg Treads Light Treads Leg Aluminum Leg Hover Unit Gyrokinetic Inverter Utility Small Storage Unit Device Seismic Detector Storage Small Storage Unit Processor Advanced Signal Interpreter Protection Hardened Light Armor Plating Weapon Light Assault Rifle Energy Gun Medium Laser Ballistic Gun Light Assault Rifle Build | -11 -10 -10 -8 -6 -5 ------- Run | Yrd Mat Sub Scr Fac Fac Slots Evolved 10 | . . . . 8 2 Power 1 | . . . . 1 . Propulsion 5 | . . . . 3 2 Utility 3 | . . . . 3 . Weapon 1 | . . . . 1 . Parts Attached 37 | 7 . 1 3 20 6 Power 6 | 1 . 1 1 2 1 Engine 5 | 1 . 1 1 2 . Core 1 | . . . . . 1 Reactor . | . . . . . . Propulsion 14 | 2 . . 2 7 3 Treads 3 | . . . . 2 1 Leg 9 | 2 . . 2 5 . Wheel . | . . . . . . Hover 2 | . . . . . 2 Flight . | . . . . . . Utility 9 | 2 . . . 6 1 Device 6 | 1 . . . 4 1 Storage 1 | 1 . . . . . Processor 1 | . . . . 1 . Hackware . | . . . . . . Protection 1 | . . . . 1 . Artifact . | . . . . . . Weapon 8 | 2 . . . 5 1 Energy Gun 6 | 1 . . . 4 1 Energy Cannon . | . . . . . . Ballistic Gun 2 | 1 . . . 1 . Ballistic Cannon . | . . . . . . Launcher . | . . . . . . Special Weapon . | . . . . . . Impact Weapon . | . . . . . . Slashing Weapon . | . . . . . . Piercing Weapon . | . . . . . . Special Melee Weapon . | . . . . . . Unidentified Prototypes . | . . . . . . Parts Lost 31 | . . . . 25 6 Power 4 | . . . . 3 1 Propulsion 11 | . . . . 9 2 Utility 8 | . . . . 6 2 Weapon 8 | . . . . 7 1 Highest Loss Streak 20 | . . . . 20 4 To Critical Strikes 1 | . . . . . 1 Average Backups 5 | 5 8 8 7 4 . Power . | . 1 1 . . . Propulsion 1 | 3 4 4 2 . . Utility 2 | . 2 2 2 1 . Weapon 1 | . 1 1 1 1 . Tool/Special . | . . . . . . Unused Backups 5 | . . . 4 . 1 Power . | . . . . . . Propulsion 2 | . . . 2 . . Utility 2 | . . . 1 . 1 Weapon 1 | . . . 1 . . Tool/Special . | . . . . . . Average Slot Usage (%) 84 | . 100 100 100 80 30 Engine 10 | . 14 14 14 7 . Treads 1 | . . . . 10 . Leg 22 | . 28 28 28 20 3 Hover 1 | . . . . . 6 Device 12 | . 14 14 14 12 7 Storage 10 | . 14 14 14 5 . Processor 1 | . . . . 4 5 Energy Gun 11 | . 14 14 14 6 4 Ballistic Gun 10 | . 14 14 14 7 . Peak Build Rating 44 | 8 8 9 12 44 35 Average Rating 14 | 5 8 8 8 29 25 On Entrance 8 | . 8 8 9 12 13 Naked Turns . | . . . . . . Heaviest Build 31 | 12 12 14 14 31 6 Greatest Support 48 | 20 20 20 38 48 23 Greatest Overweight (x) 8 | 1 . . . 8 1 Average Overweight (x) . | . . . . . . Largest Inventory Capacity 8 | 8 8 8 8 8 5 Average Capacity 7 | 7 8 8 8 7 5 Most Carried 8 | 8 8 8 8 7 1 Average Carried 5 | 5 8 8 7 3 . Final Capacity 8 | 8 8 8 8 5 5 Final Carried 8 | 8 8 8 8 . 1 Class Distribution -------------------- 84% | Mutant 9% | Scavenger-Mutant 4% | Tank Dominant Class ---------------- Mutant | -10/Materials Mutant | -10/Subcaves Mutant | -8/Scraptown Scavenger-Mutant | -6/Factory Mutant | -5/Factory Resources | -11 -10 -10 -8 -6 -5 ----------- Run | Yrd Mat Sub Scr Fac Fac Matter Collected 639 | 287 . 3 40 247 62 Remotely . | . . . . . . Salvage Created 708 | 76 . . . 510 122 Parts 34 | 12 . . . 20 2 Haulers Intercepted . | . . . . . . Recyclers Shooed . | . . . . . . Parts Field Recycled . | . . . . . . Retrieved Matter . | . . . . . . Parts Self-Destructed . | . . . . . . Prevented . | . . . . . . Kills | -11 -10 -10 -8 -6 -5 ------- Run | Yrd Mat Sub Scr Fac Fac Combat Hostiles Destroyed 11 | . . . . 9 2 Guns 7 | . . . . 6 1 AOE 3 | . . . . 3 . Classes Destroyed 7 | 2 . . . 4 1 Worker 1 | 1 . . . . . Tunneler 4 | 4 . . . . . Grunt 5 | . . . . 5 . Sentry 1 | . . . . . 1 Specialist 2 | . . . . 2 . Hunter 1 | . . . . 1 . Programmer 2 | . . . . 1 1 Best Kill Streak 3 | 3 . . . 3 1 Combat Bots Only 3 | . . . . 3 1 Max Kills in Single Turn 2 | 1 . . . 2 1 Gunslinging . | . . . . . . Exploded 2 | . . . . 2 . Melee . | . . . . . . Uniques/NPCs Destroyed . | . . . . . . Combat | -11 -10 -10 -8 -6 -5 -------- Run | Yrd Mat Sub Scr Fac Fac Hostile Shots Fired 347 | . . . 7 217 123 Missed 111 | . . . 3 58 50 Hits 236 | . . . 4 159 73 Projectile 236 | . . . 4 159 73 Critical Strikes 11 | . . . 1 2 8 Part Disruptions 3 | . . . . 3 . Damage Taken 4104 | . . 29 90 2513 1472 Core 1474 | . . . 43 418 1013 Absorbed by Shields . | . . . . . . Core Remaining (%) 77 | 100 . . 82 50 . Volleys Fired 94 | 17 . 3 . 55 19 Largest 3 | 2 . 2 . 3 1 Hottest 135 | 70 . 70 . 135 85 Shots Fired 165 | 34 . 6 . 106 19 Gun 165 | 34 . 6 . 106 19 Cannon . | . . . . . . Launcher . | . . . . . . Special . | . . . . . . Kinetic 76 | 17 . 3 . 56 . Thermal 77 | 17 . 3 . 38 19 Explosive . | . . . . . . Electromagnetic 12 | . . . . 12 . Robot Hit Streak 9 | 4 . 3 . 9 6 Robot Miss Streak 4 | 4 . 1 . 2 3 Penetration Max . | . . . . . . Secondary Targets 2 | . . . . 2 . Max Gunslinging Chain 1 | . . . . 1 . Shots Hit Robots 111 | 16 . 4 . 78 13 Core Hits 39 | 8 . . . 28 3 Critical Kills . | . . . . . . Critical Parts Destroyed . | . . . . . . Critical Strikes 8 | 1 . . . 5 2 Burn 7 | 1 . . . 4 2 Corrupt 1 | . . . . 1 . Melee Attacks . | . . . . . . Impact . | . . . . . . Slashing . | . . . . . . Piercing . | . . . . . . Sneak Attacks . | . . . . . . Combat Hostiles . | . . . . . . Follow-up Attacks . | . . . . . . Damage Inflicted 2054 | 172 . 30 . 1595 257 Guns 1534 | 172 . 30 . 1078 254 Cannons . | . . . . . . Explosions 517 | . . . . 517 . Melee . | . . . . . . Ramming 3 | . . . . . 3 Kinetic 480 | 60 . 18 . 402 . Thermal 1184 | 112 . 12 . 806 254 Explosive 241 | . . . . 241 . Electromagnetic 146 | . . . . 146 . Impact . | . . . . . . Slashing . | . . . . . . Piercing . | . . . . . . Highest Corruption 10 | . . . . 10 6 Average Corruption 6 | . . . . 6 3 Corruption Purged . | . . . . . . Corruption Blocked . | . . . . . . Effects 22 | . . . . 19 3 Message Errors 5 | . . . . 5 . Matter Fused 6 | . . . . 6 . Heat Flow Errors 3 | . . . . 2 1 Energy Discharges 1 | . . . . 1 . Parts Rejected 2 | . . . . 1 1 Parts Fused 1 | . . . . 1 . Data Loss (minor) 2 | . . . . 1 1 Data Loss (major) 1 | . . . . 1 . Misfires 1 | . . . . 1 . Overload Shots . | . . . . . . Overflow Damage 74 | . . . . 74 . Projectiles . | . . . . . . Explosions 74 | . . . . 74 . Melee . | . . . . . . Knockbacks . | . . . . . . Impact . | . . . . . . Kinetic . | . . . . . . Secondary . | . . . . . . Self-Inflicted Damage 127 | . . . . 126 1 Shots 3 | . . . . 3 . Rammed 1 | . . . . . 1 Targets Rammed 2 | . . . . 1 1 Kicked 1 | . . . . 1 . Crushed . | . . . . . . Highest Temperature 334 | 120 . . 19 334 159 Average Temperature 98 | 42 . . 19 146 22 Received Heat Transfer 905 | . . 6 73 646 180 Siege Activations . | . . . . . . Martial Activations . | . . . . . . Shielding Activations . | . . . . . . Robots Disrupted 1 | . . . . 1 . Combat Hostiles 1 | . . . . 1 . Robots Corrupted . | . . . . . . Combat Hostiles . | . . . . . . Parts Fried 1 | . . . . 1 . Impact Corruptions . | . . . . . . Robots Melted 1 | . . . . . 1 Combat Hostiles 1 | . . . . . 1 Parts Melted 7 | 1 . . . 2 4 Heat Transferred 3048 | 407 . 37 . 1754 850 Parts Sabotaged . | . . . . . . Parts Stolen . | . . . . . . Parts Stripped . | . . . . . . Power Chain Reactions 2 | . . . . 2 . Alert | -11 -10 -10 -8 -6 -5 ------- Run | Yrd Mat Sub Scr Fac Fac Maximum Alert Level . | . . . . . . Low Security (%) 100 | 100 100 . . 100 100 Level 1 . | . . . . . . Level 2 . | . . . . . . Level 3 . | . . . . . . Level 4 . | . . . . . . Level 5 . | . . . . . . High Security . | . . . . . . Max Security . | . . . . . . Peak Influence 104 | 5 . . . 104 52 Initial 23 | . . . . . 23 Average 7 | . . . . 14 4 Influence Increases 539 | 25 . . . 394 120 Destroy 0b10 Robot/C 220 | . . . . 180 40 Destroy 0b10 Robot/NC 25 | 25 . . . . . Destroy Leader 70 | . . . . 50 20 Disable Machine 105 | . . . . 105 . Destroy Structure 29 | . . . . 29 . Lose Combat Pursuer 90 | . . . . 30 60 Influence Decreases 495 | 25 . . . 346 124 Entered New Map 25 | . . . . . 25 Time Decay 228 | 25 . . . 124 79 Lost Part 242 | . . . . 222 20 Squads Dispatched 10 | . 1 . . 6 3 Investigation . | . . . . . . Extermination 2 | . . . . . 2 Reinforcement 5 | . 1 . . 3 1 Assault . | . . . . . . Garrison 3 | . . . . 3 . Intercept . | . . . . . . Searches Triggered . | . . . . . . Construction Impeded . | . . . . . . Haulers Reinforced 1 | . . . . 1 . Active Scanning Responses . | . . . . . . Cargo Convoy Interrupts . | . . . . . . Stealth | -11 -10 -10 -8 -6 -5 --------- Run | Yrd Mat Sub Scr Fac Fac Distress Signals 3 | . 1 . . . 2 Communications Jammed . | . . . . . . Distress Signals . | . . . . . . Times Spotted 48 | . 1 1 13 18 15 Peak Tracking Total 11 | . 2 1 5 5 11 Tactical Retreats 6 | . . . 2 2 2 Traps | -11 -10 -10 -8 -6 -5 ------- Run | Yrd Mat Sub Scr Fac Fac Traps Triggered 1 | . . . . 1 . Indirectly . | . . . . . . Trap Hack Attempts . | . . . . . . Triggered . | . . . . . . Disarmed . | . . . . . . Reprogrammed . | . . . . . . Reused . | . . . . . . Traps Extracted . | . . . . . . Installed . | . . . . . . Triggered . | . . . . . . Machines | -11 -10 -10 -8 -6 -5 ---------- Run | Yrd Mat Sub Scr Fac Fac Machines Disabled 7 | . . . . 7 . Max in Single Turn 5 | . . . . 5 . Machines Repaired . | . . . . . . Machines Dismantled . | . . . . . . Machines Sabotaged . | . . . . . . Overloaded Fab Kills . | . . . . . . Hacking | -11 -10 -10 -8 -6 -5 --------- Run | Yrd Mat Sub Scr Fac Fac Machines Accessed 13 | . . . 11 1 1 Terminals . | . . . . . . Fabricators 1 | . . . . . 1 Repair Stations . | . . . . . . Recycling Units 1 | . . . . 1 . Scanalyzers . | . . . . . . Garrison Access . | . . . . . . Total Hacks 75 | . . . 71 3 1 Successful 74 | . . . 71 2 1 Failed 1 | . . . . 1 . Catastrophic . | . . . . . . Database Lockouts . | . . . . . . Manual . | . . . . . . Terminals . | . . . . . . Fabricators 1 | . . . . . 1 Repair Stations . | . . . . . . Recycling Units 3 | . . . . 3 . Scanalyzers . | . . . . . . Garrison Access . | . . . . . . Terminal Hacks 71 | . . . 71 . . Record 70 | . . . 70 . . Proto ID Catalog 1 | . . . 1 . . Fabricator Hacks 1 | . . . . . 1 Build 1 | . . . . . 1 Repair Station Hacks . | . . . . . . Recycling Unit Hacks 2 | . . . . 2 . Report Inventory 1 | . . . . 1 . Retrieve Components 1 | . . . . 1 . Scanalyzer . | . . . . . . Garrison Access Hacks . | . . . . . . Unauthorized Hacks . | . . . . . . Terminals . | . . . . . . Fabricators . | . . . . . . Repair Stations . | . . . . . . Recycling Units . | . . . . . . Scanalyzers . | . . . . . . Garrison Access . | . . . . . . Data Cores Recovered . | . . . . . . Used . | . . . . . . Hacking Detections 2 | . . . . 1 1 Full Trace Events . | . . . . . . Feedback Events . | . . . . . . Feedback Blocked . | . . . . . . Robot Schematics Acquired . | . . . . . . Robots Built . | . . . . . . Authchips . | . . . . . . Time . | . . . . . . Total Robot Build Rating . | . . . . . . Part Schematics Acquired . | . . . . . . Parts Built 2 | . . . . . 2 Authchips . | . . . . . . Time 106 | . . . . . 106 Total Part Build Rating 12 | . . . . . 12 Parts Repaired . | . . . . . . Time . | . . . . . . Parts Recycled . | . . . . . . Recycled Matter . | . . . . . . Retrieved Matter . | . . . . . . Retrieved Components 2 | . . . . 2 . Parts Scanalyzed . | . . . . . . Part Schematics Acquired . | . . . . . . Parts Damaged . | . . . . . . Bothacking | -11 -10 -10 -8 -6 -5 ------------ Run | Yrd Mat Sub Scr Fac Fac Used RIF Installer . | . . . . . . Robots Hacked . | . . . . . . Non-combat . | . . . . . . Combat . | . . . . . . Robot Hacks Applied . | . . . . . . Relay Couplers Released . | . . . . . . Fabnet Peak Effective % . | . . . . . . Robots Rewired . | . . . . . . Allies Hacked . | . . . . . . Hacks Repelled . | . . . . . . Allies | -11 -10 -10 -8 -6 -5 -------- Run | Yrd Mat Sub Scr Fac Fac Total Allies . | . . . . . . Largest Group . | . . . . . . Highest-Rated Group . | . . . . . . Highest-Rated Ally . | . . . . . . Total Orders . | . . . . . . Ally Attacks . | . . . . . . Total Damage . | . . . . . . Kills . | . . . . . . Allies Corrupted . | . . . . . . Allies Melted 3 | . . . 3 . . Intel | -11 -10 -10 -8 -6 -5 ------- Run | Yrd Mat Sub Scr Fac Fac Active Infowar (turns) 4073 | 102 212 225 2405 691 438 Sensors 296 | . . . . . 296 Terrain 457 | . . . . 82 375 Seismic 3600 | 102 212 225 2405 656 . Robot Analysis Total . | . . . . . . Derelict Logs Recovered 1 | . . . 1 . . Drone Launches . | . . . . . . Drone Recoveries . | . . . . . . Exploration | -11 -10 -10 -8 -6 -5 ------------- Run | Yrd Mat Sub Scr Fac Fac Turns Passed 4493 | 172 212 225 2405 713 766 Spaces Moved 3027 | 93 124 133 1934 318 425 Core 75 | 8 . . . 40 27 Treads 73 | . . . . . 73 Legs 2777 | 85 124 133 1934 278 223 Wheels . | . . . . . . Hover 102 | . . . . . 102 Flight . | . . . . . . Fastest Speed 50 | 50 120 120 100 100 50 Average Speed 122 | 115 120 120 119 156 112 Slowest Speed 450 | 120 120 120 120 450 160 Overloaded Moves . | . . . . . . Propulsion Burnouts . | . . . . . . Robots Hopped . | . . . . . . Potential Cave-ins . | . . . . . . Cave-ins Triggered . | . . . . . . Exploration Rate (%) 26 | 4 32 11 92 6 14 Regions Visited 5 Branch Regions 2 Pre-discovered Areas . | . . . . . . Known Exits Taken 1 | . . . . 1 . Unknown Exits Taken 4 | 1 1 1 1 . . Scrap Searched 3 | . . . 3 . . Spaces Dug . | . . . . . . Terrain Destroyed 40 | . . . . 40 . Melee . | . . . . . . Projectile . | . . . . . . AOE 40 | . . . . 40 . Terrain Rammed . | . . . . . . Walls Destroyed . | . . . . . . Machines Disabled . | . . . . . . Actions | -11 -10 -10 -8 -6 -5 --------- Run | Yrd Mat Sub Scr Fac Fac Total 3658 | 124 187 193 2021 440 693 Wait 473 | . 64 56 75 37 241 Move 3022 | 92 123 132 1933 317 425 Hop . | . . . . . . Pick Up 13 | 8 . . 4 . 1 Fast Attach 26 | 7 . . . 13 6 Attach 13 | . . . 1 12 . Detach 3 | . . . . 3 . Swap 5 | . . 1 2 2 . Drop 7 | . . 1 6 . . Fire 94 | 17 . 3 . 55 19 Melee . | . . . . . . Ram 1 | . . . . . 1 Kick 1 | . . . . 1 . Crush . | . . . . . . Escape Stasis . | . . . . . . Rewire . | . . . . . . Trap . | . . . . . . Miscellaneous . | . . . . . . Route ------- -11/Scrapyard -10/Materials (discovered 2 exits: [*Min] / [*Sub]) -10/Subcaves (discovered 2 exits: [*Mat] / *Scr) -8/Scraptown (discovered 2 exits: *Fac x2) -6/Factory (discovered 2 exits: *Fac / Low) -5/Factory (discovered 1 exit: [*Upp]) History --------- Turn | Location | Event 6 | -11/Scrapyard | Discovered new exit (range 16) 173 | -11/Scrapyard | Entered Materials 174 | -10/Materials | Met a group of wandering Federalists 239 | -10/Materials | Discovered new exit (range 6) 307 | -10/Materials | Build established: Mutant 333 | -10/Materials | Discovered new exit (range 3) 385 | -10/Materials | Entered Subcaves 386 | -10/Subcaves | Continued accompanying wandering Federalists (6) 426 | -10/Subcaves | Discovered new exit (range 15) 509 | -10/Subcaves | Lost 3 allies 603 | -10/Subcaves | Wandering Federalist uncovered a shortcut to Scraptown 610 | -10/Subcaves | Entered Scraptown 891 | -8/Scraptown | Heard Great Nut preacher, LISTEN AND RECITE! 1077 | -8/Scraptown | Scanned Subdweller tech in exchange for log data 1081 | -8/Scraptown | Learned location of 1 exit from Factory 1096 | -8/Scraptown | Discovered new exit (range 13) 1228 | -8/Scraptown | Visited Comm Corps 1312 | -8/Scraptown | Visited Red Mages 1381 | -8/Scraptown | Visited Cyclists 1714 | -8/Scraptown | Visited UFD Registry 1769 | -8/Scraptown | Visited Cave Peace 1858 | -8/Scraptown | Visited Fellowship of the Rings 1957 | -8/Scraptown | Visited TADAMA 2060 | -8/Scraptown | Registered with UFD as "Wavebay" 2109 | -8/Scraptown | Visited Science Guys 2228 | -8/Scraptown | Entered Cyclist Reading Room 2317 | -8/Scraptown | Visited Observation Area 2409 | -8/Scraptown | Visited Chapter 10 2449 | -8/Scraptown | Visited Abandonware Association 2481 | -8/Scraptown | Learned abandonware demo "ERRANTS.EXE" 2717 | -8/Scraptown | Visited LU-1G1's Boring Crew 2810 | -8/Scraptown | Met Optimus 2810 | -8/Scraptown | Accepted into 0bPrime 2861 | -8/Scraptown | Civil war broke out across Scraptown 2865 | -8/Scraptown | Visited Research Penetration Think Tank 2907 | -8/Scraptown | Lost 3 allies 2944 | -8/Scraptown | Visited Scrap Suit Storage 2971 | -8/Scraptown | Visited Curators Association 2995 | -8/Scraptown | Discovered new exit (range 12) 3015 | -8/Scraptown | Lost 11 allies 3015 | -8/Scraptown | Entered Factory 3015 | -6/Factory | Evolved 8 slots: Power x1, Propulsion x3, Utility x3, Weapon x1 3016 | -6/Factory | Identified exit to Lower Caves 3473 | -6/Factory | Garrison activated, responded to threat 3500 | -6/Factory | System corruption reached 10% 3580 | -6/Factory | Lost 3 parts (1n1u1w) 3700 | -6/Factory | Discovered new exit (range 10) 3702 | -6/Factory | Spotted B-75 Beast 3727 | -6/Factory | Identified exit to Factory 3728 | -6/Factory | Entered another Factory area 3728 | -5/Factory | Evolved 2 slots: Propulsion x2 3759 | -5/Factory | Lost 20 parts (2p8n5u5w) 3967 | -5/Factory | Fabricated Gyrokinetic Inverter (x2) 4409 | -5/Factory | Core integrity fell below 50% 4437 | -5/Factory | Core integrity fell below 20% 4453 | -5/Factory | Lost 4 parts (1p1n1u1w) 4492 | -5/Factory | Discovered new exit (range 8) 4494 | -5/Factory | Destroyed by Y-64 Sentinel with KE Penetrator Last Messages --------------- 04411_ O-24 Administrator: "IFF HANDSHAKE FAILED. SECURING TERMINAL." 04414_ W-25 Informer sends out distress signal. 04416_ System corrupted: Gyrokinetic Inverter rejected. 04416_ Slug penetrates Wall. 04422_ Penetrated by Slug. 04422_ Critical hit (Destroy). 04422_ Mic. Nuclear Core destroyed. 04423_ Penetrated by Slug. 04432_ Slammed into R-10 Processor. 04439_ ALERT: Hostiles spotted, dispatching reinforcements to Terminal F011. 04451_ ALERT: Potential suspicious activity detected, Programmers report to Factory Zone 7J. 04459_ ALERT: Cargo convoy en route, clear transfer corridor. 04461_ Subcomponent Replicator disabled. 04466_ System corrupted: Heat flow error (+192). 04486_ System corrupted: Component data lost. 04487_ Connecting with Terminal... 04492_ EXIT=FOUND 04494_ Penetrated by Slug. Map ----- +----------------------------------------------------+ | ????????????????????????????????????????? | | ????????????????????????????????????????? | | ????????????????????????????????????????? | | ????????????????????????????????????????? | | ????????????????????????????????????????? | | ????????????????????????????????????????? | | ????????????????????????????????????????? | | ????????????????????????????????????????? | | ????????????????????????????????????????? | | ????????????????????????????????????????? | | ???????????????????? ?????????????????? | | ???????????????????+ ?????????????????? | | ???????????????????# ?????????????????? | | ???????????????????# ?????????????????? | | ???????????????????# #????????????????? | | ???????????????????# #????????????????? | | ???????????????????# #????????????????? | | ???????????????????# #????????????????? | | ???????????????????# ##############???? | | ???????????????????# # #???? | | ???????????????????# # #???? | | ???????????????????# # #???? | | ???????????????????# # ! #???? | | ???????????????????# # ||| #???? | | ???????????????????# # ||| #???? | | ??????############## + @ <|| #???? | | ?????? # | #???? | | ?????? # #???? | | ?????? ! """ # #???? | | ???????###### """ # #???? | | ????????????# """ #] #???? | | ????????????# ##Y###########???? | | ????????????# ####?????????????? | | ????????????# "" "" #????????????????? | | ????????????# ""T"" #????????????????? | | ????????????# """ #####????????????? | | ????????????# ??????????? | | ############# ??????????? | | ??????????? | | ??????????? | | " "" "" "" "" "" ???????????? | | "" "" "" "" "" "" ???????????? | | " """ """ """ """ """ """ [[ ??????????? | | " """ """ """ """ """ ""? [[???????????? | | " "" """ """ """ """ ???? ?????????????? | | ????????????????? | | ????????????????? | | ############ ????????????????? | | ???????????###+########?????????????????? | | ????????????????????????????????????????? | +----------------------------------------------------+ Best States ------------- Heat Dissipation 64 Energy Generation 21 Energy Capacity 315 Matter Stores 300 Matter Capacity 300 Sight Range 16 Robot Scan Range 16 Terrain Scan Range 16 Terrain Scan Density 10 Armor Coverage 150 Resistance: KI 20 Evasion (%) 55 Recoil Reduction 1 Item Schematics ----------------- None Robot Schematics ------------------ None Fabricated ------------ Gyrokinetic Inverter | x2 | -5/Factory | Preloaded Repaired ---------- Nothing Alien Tech Used ----------------- None Achievements -------------- I Spy Challenges ------------ None Game ------ Seed IntegratedDroneMonowheel Manual? 0 Play Time 01:11:14 Cumulative 21.2 hours Start 2025.06.23 @ 21:42:19 End 2025.06.24 @ 22:03:11 Sessions 3 Manual Loads 0 Difficulty Rogue Special Mode None Game No. 22 Rogue 22 Adventurer 0 Explorer 0 Win Type - Total 0 Types 0/0/0/0/0/0/0/0/0/0 Lore% 20 Gallery% 15 Achievement% 16 Wizard Run 0 Options --------- Layout 0 ASCII 0 Keyboard 1 Movement Numpad Keybinds 0 Fullscreen 1 Font 18/SmallcapsGlow Map View 76x50 Zoom Use 0% Tactical HUD 1 Map Filters NONE Filters NONE Steam 1 RUN: ecdf77b7-ed39-45da-bfe2-74ff5224a0fe